[Event "Elite Hotels Open 2023"]
[Site "Elite Stadshotellet, Kungsgatan 6, Vaxjo, Sweden"]
[Date "2023.02.10"]
[Round "3.15"]
[White "Alquist, Erik"]
[Black "Lindberg, Bengt"]
[Result "0-1"]
[TimeControl "15 minutes + 5 seconds per move from move one (Round 1 - 4) / 90 minutes + 30 seconds per move from move one (Round 5 - 8)"]
[BlackTitle "IM"]
[WhiteFideId "1707701"]
[BlackFideId "1700359"]
[WhiteElo "1994"]
[BlackElo "2354"]

1. e4 {[%clk 00:15:08]} {[%emt 00:00:01]} c5 {[%clk 00:15:05]} {[%emt
00:00:04]} 2. Nf3 {[%clk 00:15:12]} {[%emt 00:00:03]} e6 {[%clk 00:15:06]}
{[%emt 00:00:03]} 3. d4 {[%clk 00:15:15]} {[%emt 00:00:02]} cxd4 {[%clk
00:15:08]} {[%emt 00:00:03]} 4. Nxd4 {[%clk 00:15:18]} {[%emt 00:00:02]} Nc6
{[%clk 00:15:09]} {[%emt 00:00:04]} 5. Nc3 {[%clk 00:15:20]} {[%emt 00:00:03]}
Qc7 {[%clk 00:15:10]} {[%emt 00:00:03]} 6. Be3 {[%clk 00:15:19]} {[%emt
00:00:08]} a6 {[%clk 00:15:12]} {[%emt 00:00:02]} 7. g4 {[%clk 00:15:21]}
{[%emt 00:00:03]} b5 {[%clk 00:14:55]} {[%emt 00:00:22]} 8. Nxc6 {[%clk
00:15:04]} {[%emt 00:00:21]} Qxc6 {[%clk 00:14:56]} {[%emt 00:00:05]} 9. Qd2
{[%clk 00:15:06]} {[%emt 00:00:03]} Bb7 {[%clk 00:14:58]} {[%emt 00:00:02]} 10.
O-O-O {[%clk 00:14:30]} {[%emt 00:00:42]} Nf6 {[%clk 00:14:33]} {[%emt
00:00:30]} 11. f3 {[%clk 00:14:18]} {[%emt 00:00:18]} b4 {[%clk 00:14:13]}
{[%emt 00:00:24]} 12. Ne2 {[%clk 00:14:19]} {[%emt 00:00:04]} d5 {[%clk
00:14:12]} {[%emt 00:00:06]} 13. g5 {[%clk 00:13:37]} {[%emt 00:00:48]} Nd7
{[%clk 00:14:06]} {[%emt 00:00:10]} 14. Nd4 {[%clk 00:12:59]} {[%emt 00:00:43]}
Qc7 {[%clk 00:14:05]} {[%emt 00:00:05]} 15. f4 {[%clk 00:12:33]} {[%emt
00:00:32]} Nb6 {[%clk 00:12:25]} {[%emt 00:01:43]} 16. f5 {[%clk 00:12:13]}
{[%emt 00:00:27]} e5 {[%clk 00:11:28]} {[%emt 00:01:01]} 17. exd5 {[%clk
00:11:26]} {[%emt 00:00:52]} O-O-O {[%clk 00:09:30]} {[%emt 00:02:02]} 18. f6
{[%clk 00:09:50]} {[%emt 00:01:42]} gxf6 {[%clk 00:08:47]} {[%emt 00:00:49]} 19.
Bh3+ {[%clk 00:09:30]} {[%emt 00:00:25]} Kb8 {[%clk 00:08:47]} {[%emt
00:00:05]} 20. Nb3 {[%clk 00:08:09]} {[%emt 00:01:26]} Nxd5 {[%clk 00:07:09]}
{[%emt 00:01:42]} 21. Rhf1 {[%clk 00:07:40]} {[%emt 00:00:33]} Be7 {[%clk
00:04:42]} {[%emt 00:02:32]} 22. Bg1 {[%clk 00:06:50]} {[%emt 00:00:56]} Ba8
{[%clk 00:03:39]} {[%emt 00:01:08]} 23. gxf6 {[%clk 00:06:33]} {[%emt
00:00:24]} Nxf6 {[%clk 00:03:23]} {[%emt 00:00:20]} 24. Qe3 {[%clk 00:06:18]}
{[%emt 00:00:20]} Rxd1+ {[%clk 00:03:12]} {[%emt 00:00:15]} 25. Rxd1 {[%clk
00:06:21]} {[%emt 00:00:02]} Nd5 {[%clk 00:02:56]} {[%emt 00:00:21]} 26. Qh6
{[%clk 00:05:59]} {[%emt 00:00:27]} Rd8 {[%clk 00:02:29]} {[%emt 00:00:32]} 27.
Qxa6 {[%clk 00:05:37]} {[%emt 00:00:28]} Bg5+ {[%clk 00:02:22]} {[%emt
00:00:11]} 28. Nd2 {[%clk 00:05:33]} {[%emt 00:00:10]} Be3 {[%clk 00:01:38]}
{[%emt 00:00:48]} 29. Qb5+ {[%clk 00:05:06]} {[%emt 00:00:32]} Bb7 {[%clk
00:01:31]} {[%emt 00:00:13]} 30. Bg2 {[%clk 00:04:37]} {[%emt 00:00:33]} Bxg1
{[%clk 00:01:05]} {[%emt 00:00:32]} 31. Rxg1 {[%clk 00:04:30]} {[%emt
00:00:12]} Rg8 {[%clk 00:01:05]} {[%emt 00:00:04]} 32. Ne4 {[%clk 00:03:28]}
{[%emt 00:01:08]} Rc8 {[%clk 00:01:08]} {[%emt 00:00:02]} 33. c4 {[%clk
00:03:01]} {[%emt 00:00:31]} bxc3 {[%clk 00:01:09]} {[%emt 00:00:04]} 34. b4
{[%clk 00:03:00]} {[%emt 00:00:06]} Qc6 {[%clk 00:00:53]} {[%emt 00:00:21]} 35.
Qa5 {[%clk 00:02:28]} {[%emt 00:00:37]} Qh6+ {[%clk 00:00:35]} {[%emt
00:00:24]} 36. Kc2 {[%clk 00:02:17]} {[%emt 00:00:15]} Ne3+ {[%clk 00:00:31]}
{[%emt 00:00:09]} 37. Kb3 {[%clk 00:02:22]} Qe6+ {[%clk 00:00:30]} {[%emt
00:00:07]} 38. Ka3 {[%clk 00:01:41]} {[%emt 00:00:46]} Nc4+ {[%clk 00:00:32]}
{[%emt 00:00:02]} 0-1

[Event "Elite Hotels Open 2023"]
[Site "Elite Stadshotellet, Kungsgatan 6, Vaxjo, Sweden"]
[Date "2023.02.10"]
[Round "3.16"]
[White "Falkevall, Axel"]
[Black "Abrahamsson, Patrik"]
[Result "1-0"]
[TimeControl "15 minutes + 5 seconds per move from move one (Round 1 - 4) / 90 minutes + 30 seconds per move from move one (Round 5 - 8)"]
[WhiteTitle "FM"]
[WhiteFideId "1735560"]
[BlackFideId "1716484"]
[WhiteElo "2299"]
[BlackElo "1939"]

1. e4 {[%clk 00:15:07]} {[%emt 00:00:01]} d5 {[%clk 00:15:08]} {[%emt
00:00:03]} 2. exd5 {[%clk 00:15:10]} {[%emt 00:00:02]} Nf6 {[%clk 00:15:11]}
{[%emt 00:00:02]} 3. d4 {[%clk 00:15:05]} {[%emt 00:00:09]} Nxd5 {[%clk
00:15:14]} {[%emt 00:00:03]} 4. Nf3 {[%clk 00:15:07]} {[%emt 00:00:02]} Bg4
{[%clk 00:15:13]} {[%emt 00:00:07]} 5. Be2 {[%clk 00:15:00]} {[%emt 00:00:12]}
e6 {[%clk 00:15:10]} {[%emt 00:00:08]} 6. O-O {[%clk 00:15:00]} {[%emt
00:00:04]} Be7 {[%clk 00:15:10]} {[%emt 00:00:06]} 7. h3 {[%clk 00:14:52]}
{[%emt 00:00:13]} Bh5 {[%clk 00:15:04]} {[%emt 00:00:11]} 8. c4 {[%clk
00:14:44]} {[%emt 00:00:13]} Nb6 {[%clk 00:14:59]} {[%emt 00:00:10]} 9. Nc3
{[%clk 00:14:26]} {[%emt 00:00:23]} O-O {[%clk 00:14:51]} {[%emt 00:00:14]} 10.
Be3 {[%clk 00:14:04]} {[%emt 00:00:26]} N8d7 {[%clk 00:14:36]} {[%emt
00:00:21]} 11. c5 {[%clk 00:12:35]} {[%emt 00:01:33]} Nd5 {[%clk 00:14:31]}
{[%emt 00:00:09]} 12. Nxd5 {[%clk 00:12:24]} {[%emt 00:00:16]} exd5 {[%clk
00:14:36]} {[%emt 00:00:01]} 13. Qb3 {[%clk 00:12:20]} {[%emt 00:00:10]} Nf6
{[%clk 00:13:03]} {[%emt 00:01:38]} 14. g4 {[%clk 00:11:51]} {[%emt 00:00:34]}
Bg6 {[%clk 00:12:26]} {[%emt 00:00:41]} 15. Ne5 {[%clk 00:11:49]} {[%emt
00:00:07]} Rb8 {[%clk 00:11:24]} {[%emt 00:01:07]} 16. h4 {[%clk 00:10:13]}
{[%emt 00:01:40]} h6 {[%clk 00:10:25]} {[%emt 00:01:04]} 17. Nxg6 {[%clk
00:10:06]} {[%emt 00:00:12]} fxg6 {[%clk 00:10:29]} {[%emt 00:00:02]} 18. Bf3
{[%clk 00:09:49]} {[%emt 00:00:22]} Kh8 {[%clk 00:09:54]} {[%emt 00:00:40]} 19.
g5 {[%clk 00:08:10]} {[%emt 00:01:44]} Ne4 {[%clk 00:08:54]} {[%emt 00:01:05]}
20. Bxe4 {[%clk 00:07:53]} {[%emt 00:00:22]} dxe4 {[%clk 00:08:58]} {[%emt
00:00:01]} 21. Qe6 {[%clk 00:07:12]} {[%emt 00:00:46]} b6 {[%clk 00:07:29]}
{[%emt 00:01:35]} 22. c6 {[%clk 00:04:44]} {[%emt 00:02:33]} Qd6 {[%clk
00:06:15]} {[%emt 00:01:18]} 23. Qxd6 {[%clk 00:04:15]} {[%emt 00:00:34]} Bxd6
{[%clk 00:06:18]} {[%emt 00:00:02]} 24. gxh6 {[%clk 00:03:55]} {[%emt
00:00:24]} Bf4 {[%clk 00:06:12]} {[%emt 00:00:12]} 25. hxg7+ {[%clk 00:03:50]}
{[%emt 00:00:09]} Kxg7 {[%clk 00:06:16]} {[%emt 00:00:01]} 26. Kg2 {[%clk
00:03:38]} {[%emt 00:00:18]} Rf6 {[%clk 00:06:04]} {[%emt 00:00:16]} 27. Rac1
{[%clk 00:02:29]} {[%emt 00:01:14]} Rh8 {[%clk 00:06:06]} {[%emt 00:00:04]} 28.
Rh1 {[%clk 00:01:58]} {[%emt 00:00:36]} Rh5 {[%clk 00:06:08]} {[%emt 00:00:03]}
29. Rc2 {[%clk 00:01:03]} {[%emt 00:01:01]} g5 {[%clk 00:05:08]} {[%emt
00:01:05]} 30. Re2 {[%clk 00:00:32]} {[%emt 00:00:35]} gxh4 {[%clk 00:03:42]}
{[%emt 00:01:32]} 31. d5 {[%clk 00:00:18]} {[%emt 00:00:19]} h3+ {[%clk
00:03:25]} {[%emt 00:00:21]} 32. Kf1 {[%clk 00:00:22]} {[%emt 00:00:01]} h2
{[%clk 00:02:29]} {[%emt 00:01:01]} 33. Bxf4 {[%clk 00:00:23]} {[%emt
00:00:05]} Rxf4 {[%clk 00:02:33]} 34. d6 {[%clk 00:00:23]} {[%emt 00:00:05]}
cxd6 {[%clk 00:02:31]} {[%emt 00:00:08]} 35. Rc2 {[%clk 00:00:27]} Rc5 {[%clk
00:02:10]} {[%emt 00:00:26]} 36. Rxc5 {[%clk 00:00:26]} {[%emt 00:00:07]} bxc5
{[%clk 00:01:47]} {[%emt 00:00:29]} 37. Rxh2 {[%clk 00:00:27]} {[%emt
00:00:03]} Rf7 {[%clk 00:01:41]} {[%emt 00:00:11]} 38. Ke2 {[%clk 00:00:21]}
{[%emt 00:00:10]} Kf6 {[%clk 00:01:40]} {[%emt 00:00:06]} 39. Rh4 {[%clk
00:00:18]} {[%emt 00:00:08]} Ke5 {[%clk 00:01:43]} {[%emt 00:00:02]} 40. Rh5+
{[%clk 00:00:19]} {[%emt 00:00:04]} Ke6 {[%clk 00:01:45]} {[%emt 00:00:03]} 41.
Ke3 {[%clk 00:00:20]} {[%emt 00:00:03]} d5 {[%clk 00:01:47]} {[%emt 00:00:05]}
42. Rh6+ {[%clk 00:00:24]} Ke7 {[%clk 00:01:51]} {[%emt 00:00:01]} 43. c7
{[%clk 00:00:25]} {[%emt 00:00:05]} Kd7 {[%clk 00:01:55]} 44. Rc6 {[%clk
00:00:25]} {[%emt 00:00:05]} Kc8 {[%clk 00:02:00]} 45. Rxc5 Rxc7 {[%clk
00:02:04]} 46. Rxd5 {[%clk 00:00:27]} {[%emt 00:00:07]} Rc2 {[%clk 00:02:03]}
{[%emt 00:00:06]} 47. Rd2 {[%clk 00:00:31]} {[%emt 00:00:01]} 1-0

[Event "Elite Hotels Open 2023"]
[Site "Elite Stadshotellet, Kungsgatan 6, Vaxjo, Sweden"]
[Date "2023.02.10"]
[Round "3.17"]
[White "Tops, Jonatan"]
[Black "Kristensen, Kaare Hove"]
[Result "0-1"]
[TimeControl "15 minutes + 5 seconds per move from move one (Round 1 - 4) / 90 minutes + 30 seconds per move from move one (Round 5 - 8)"]
[BlackTitle "IM"]
[WhiteFideId "1759809"]
[BlackFideId "1400940"]
[WhiteElo "1937"]
[BlackElo "2210"]

1. e4 {[%clk 00:15:05]} {[%emt 00:13:18]} c5 {[%clk 00:15:05]} {[%emt
00:00:02]} 2. Nf3 {[%clk 00:15:03]} {[%emt 00:00:31]} d6 {[%clk 00:15:05]}
{[%emt 00:00:07]} 3. d4 {[%clk 00:15:05]} {[%emt 00:00:03]} Nf6 {[%clk
00:15:07]} {[%emt 00:00:01]} 4. Nc3 {[%clk 00:14:49]} {[%emt 00:00:21]} cxd4
{[%clk 00:15:11]} {[%emt 00:00:02]} 5. Nxd4 {[%clk 00:14:52]} {[%emt 00:00:01]}
a6 {[%clk 00:15:13]} {[%emt 00:00:03]} 6. Bg5 {[%clk 00:14:49]} {[%emt
00:00:08]} e6 {[%clk 00:15:15]} {[%emt 00:00:03]} 7. f4 {[%clk 00:14:53]}
{[%emt 00:00:02]} Be7 {[%clk 00:15:17]} {[%emt 00:00:02]} 8. Qf3 {[%clk
00:14:52]} {[%emt 00:00:07]} Qc7 {[%clk 00:15:16]} {[%emt 00:00:05]} 9. O-O-O
{[%clk 00:14:48]} {[%emt 00:00:09]} O-O {[%clk 00:15:17]} {[%emt 00:00:04]} 10.
Kb1 {[%clk 00:14:30]} {[%emt 00:00:24]} Nc6 {[%clk 00:14:45]} {[%emt 00:00:36]}
11. f5 {[%clk 00:14:13]} {[%emt 00:00:23]} Nxd4 12. Rxd4 {[%clk 00:14:16]} Bd7
{[%clk 00:13:25]} {[%emt 00:00:08]} 13. g4 {[%clk 00:11:34]} {[%emt 00:02:47]}
Bc6 {[%clk 00:12:41]} {[%emt 00:00:50]} 14. Rd2 {[%clk 00:08:14]} {[%emt
00:03:25]} Nxe4 {[%clk 00:11:47]} {[%emt 00:00:58]} 15. Nxe4 {[%clk 00:08:03]}
{[%emt 00:00:16]} Bxg5 {[%clk 00:11:50]} {[%emt 00:00:03]} 16. Re2 {[%clk
00:07:42]} {[%emt 00:00:26]} Rac8 {[%clk 00:10:37]} {[%emt 00:01:16]} 17. h4
{[%clk 00:07:33]} {[%emt 00:00:15]} Be7 {[%clk 00:09:14]} {[%emt 00:01:28]} 18.
f6 {[%clk 00:06:24]} {[%emt 00:01:15]} Bxe4 {[%clk 00:09:03]} {[%emt 00:00:15]}
19. Qxe4 {[%clk 00:06:28]} {[%emt 00:00:02]} Bxf6 {[%clk 00:08:55]} {[%emt
00:00:12]} 20. Rf2 {[%clk 00:05:55]} {[%emt 00:00:39]} Qc6 {[%clk 00:08:13]}
{[%emt 00:00:45]} 21. Qxc6 {[%clk 00:05:10]} {[%emt 00:00:52]} Rxc6 {[%clk
00:08:16]} {[%emt 00:00:02]} 22. Bg2 {[%clk 00:05:10]} {[%emt 00:00:04]} d5
{[%clk 00:08:11]} {[%emt 00:00:09]} 23. g5 {[%clk 00:04:59]} {[%emt 00:00:17]}
Be7 {[%clk 00:08:13]} {[%emt 00:00:03]} 24. Rhf1 {[%clk 00:05:01]} {[%emt
00:00:03]} Rc4 {[%clk 00:07:52]} {[%emt 00:00:25]} 25. Rf4 {[%clk 00:04:26]}
{[%emt 00:00:41]} Rxf4 {[%clk 00:07:54]} {[%emt 00:00:02]} 26. Rxf4 {[%clk
00:04:31]} {[%emt 00:00:02]} b5 {[%clk 00:07:43]} {[%emt 00:00:16]} 27. c3
{[%clk 00:04:19]} {[%emt 00:00:17]} Bd6 {[%clk 00:07:22]} {[%emt 00:00:25]} 28.
Rf3 {[%clk 00:04:21]} {[%emt 00:00:04]} f5 {[%clk 00:07:09]} {[%emt 00:00:17]}
29. Bh3 {[%clk 00:04:03]} {[%emt 00:00:23]} g6 {[%clk 00:07:03]} {[%emt
00:00:11]} 30. Bf1 {[%clk 00:03:33]} {[%emt 00:00:36]} Rd8 {[%clk 00:06:49]}
{[%emt 00:00:18]} 31. a4 {[%clk 00:03:07]} {[%emt 00:00:31]} bxa4 {[%clk
00:06:40]} {[%emt 00:00:14]} 32. Bxa6 {[%clk 00:03:10]} {[%emt 00:00:03]} Kf7
{[%clk 00:06:34]} {[%emt 00:00:08]} 33. Kc2 {[%clk 00:02:50]} {[%emt 00:00:27]}
e5 {[%clk 00:06:28]} {[%emt 00:00:11]} 34. h5 {[%clk 00:02:54]} Be7 {[%clk
00:05:55]} {[%emt 00:00:37]} 35. hxg6+ hxg6 {[%clk 00:05:58]} 36. Bb5 {[%clk
00:02:51]} {[%emt 00:00:06]} e4 {[%clk 00:05:49]} {[%emt 00:00:13]} 37. Rh3
{[%clk 00:02:53]} {[%emt 00:00:03]} Bxg5 {[%clk 00:05:48]} {[%emt 00:00:06]} 38.
Bxa4 {[%clk 00:02:54]} {[%emt 00:00:05]} f4 {[%clk 00:05:44]} {[%emt 00:00:09]}
39. Rh7+ {[%clk 00:01:58]} {[%emt 00:01:00]} Kf6 {[%clk 00:05:46]} {[%emt
00:00:02]} 40. Rd7 {[%clk 00:02:03]} {[%emt 00:00:02]} Rxd7 {[%clk 00:05:42]}
{[%emt 00:00:09]} 41. Bxd7 {[%clk 00:02:07]} f3 {[%clk 00:05:42]} {[%emt
00:00:04]} 42. Bg4 {[%clk 00:01:18]} {[%emt 00:00:55]} Ke5 {[%clk 00:05:44]}
{[%emt 00:00:03]} 43. b4 {[%clk 00:00:15]} {[%emt 00:01:08]} Kf4 {[%clk
00:05:14]} {[%emt 00:00:34]} 44. Bh3 {[%clk 00:00:19]} {[%emt 00:00:01]} Kg3
{[%clk 00:05:12]} {[%emt 00:00:08]} 45. Bf1 {[%clk 00:00:20]} {[%emt 00:00:04]}
e3 {[%clk 00:05:04]} {[%emt 00:00:12]} 0-1

[Event "Elite Hotels Open 2023"]
[Site "Elite Stadshotellet, Kungsgatan 6, Vaxjo, Sweden"]
[Date "2023.02.10"]
[Round "3.18"]
[White "Johansson, Ulf"]
[Black "Cedervall, Magnus"]
[Result "1-0"]
[TimeControl "15 minutes + 5 seconds per move from move one (Round 1 - 4) / 90 minutes + 30 seconds per move from move one (Round 5 - 8)"]
[WhiteFideId "1701380"]
[BlackFideId "1736345"]
[WhiteElo "2205"]
[BlackElo "1946"]

1. Nf3 {[%clk 00:15:07]} {[%emt 00:00:03]} Nf6 {[%clk 00:15:05]} {[%emt
00:00:35]} 2. g3 {[%clk 00:15:09]} {[%emt 00:00:05]} g6 {[%clk 00:15:08]}
{[%emt 00:00:01]} 3. Bg2 {[%clk 00:15:12]} {[%emt 00:00:01]} Bg7 {[%clk
00:15:11]} {[%emt 00:00:02]} 4. O-O {[%clk 00:15:14]} {[%emt 00:00:02]} O-O
{[%clk 00:15:14]} {[%emt 00:00:02]} 5. d4 {[%clk 00:15:18]} {[%emt 00:00:02]}
d6 {[%clk 00:15:17]} {[%emt 00:00:02]} 6. Nc3 {[%clk 00:15:20]} {[%emt
00:00:02]} Nc6 {[%clk 00:15:04]} {[%emt 00:00:19]} 7. h3 {[%clk 00:14:21]}
{[%emt 00:01:04]} e5 {[%clk 00:13:56]} {[%emt 00:01:13]} 8. dxe5 {[%clk
00:14:13]} {[%emt 00:00:13]} Nxe5 {[%clk 00:13:44]} {[%emt 00:00:17]} 9. Nd4
{[%clk 00:12:44]} {[%emt 00:01:34]} c6 {[%clk 00:11:50]} {[%emt 00:02:00]} 10.
a4 {[%clk 00:12:10]} {[%emt 00:00:38]} d5 {[%clk 00:11:43]} {[%emt 00:00:12]}
11. a5 {[%clk 00:11:38]} {[%emt 00:00:37]} Rb8 {[%clk 00:11:29]} {[%emt
00:00:20]} 12. Nb3 {[%clk 00:11:26]} {[%emt 00:00:16]} Nc4 {[%clk 00:11:03]}
{[%emt 00:00:30]} 13. e4 {[%clk 00:08:01]} {[%emt 00:03:31]} Nxe4 {[%clk
00:10:05]} {[%emt 00:01:03]} 14. Nxe4 {[%clk 00:06:55]} {[%emt 00:01:11]} dxe4
{[%clk 00:09:59]} {[%emt 00:00:11]} 15. c3 {[%clk 00:06:54]} {[%emt 00:00:06]}
Be6 {[%clk 00:06:37]} {[%emt 00:03:27]} 16. Nc5 {[%clk 00:06:39]} {[%emt
00:00:19]} Qe7 {[%clk 00:06:15]} {[%emt 00:00:28]} 17. Nxe6 {[%clk 00:05:39]}
{[%emt 00:01:05]} Qxe6 {[%clk 00:06:16]} {[%emt 00:00:04]} 18. Re1 {[%clk
00:05:42]} {[%emt 00:00:02]} Rfe8 {[%clk 00:05:48]} {[%emt 00:00:33]} 19. Rxe4
{[%clk 00:05:31]} {[%emt 00:00:16]} Rbd8 {[%clk 00:04:35]} {[%emt 00:01:18]} 20.
Qe2 {[%clk 00:05:21]} {[%emt 00:00:15]} Qc8 {[%clk 00:03:36]} {[%emt 00:01:04]}
21. Qxc4 {[%clk 00:05:00]} {[%emt 00:00:26]} Rxe4 {[%clk 00:03:28]} {[%emt
00:00:13]} 22. Qxe4 {[%clk 00:05:03]} {[%emt 00:00:02]} Rd1+ {[%clk 00:03:25]}
{[%emt 00:00:08]} 23. Kh2 {[%clk 00:05:06]} {[%emt 00:00:02]} Bh6 {[%clk
00:03:29]} {[%emt 00:00:02]} 24. Bxh6 {[%clk 00:04:30]} {[%emt 00:00:40]} Rxa1
{[%clk 00:03:19]} {[%emt 00:00:16]} 25. Qe5 {[%clk 00:04:34]} {[%emt 00:00:01]}
f6 {[%clk 00:02:35]} {[%emt 00:00:48]} 26. Qxf6 {[%clk 00:04:36]} {[%emt
00:00:02]} Qd7 {[%clk 00:02:31]} {[%emt 00:00:10]} 27. Qf8# {[%emt 00:00:02]}
1-0

[Event "Elite Hotels Open 2023"]
[Site "Elite Stadshotellet, Kungsgatan 6, Vaxjo, Sweden"]
[Date "2023.02.10"]
[Round "4.1"]
[White "Galperin, Platon"]
[Black "Golubka, Petro"]
[Result "1-0"]
[TimeControl "15 minutes + 5 seconds per move from move one (Round 1 - 4) / 90 minutes + 30 seconds per move from move one (Round 5 - 8)"]
[WhiteTitle "GM"]
[BlackTitle "GM"]
[WhiteFideId "14165414"]
[BlackFideId "14114224"]
[WhiteElo "2538"]
[BlackElo "2363"]

1. Nf3 {[%clk 00:15:08]} Nf6 {[%clk 00:15:00]} {[%emt 00:00:11]} 2. g3 {[%clk
00:15:11]} {[%emt 00:00:02]} g6 {[%clk 00:15:00]} {[%emt 00:00:06]} 3. Bg2
{[%clk 00:15:13]} {[%emt 00:00:01]} Bg7 {[%clk 00:15:03]} {[%emt 00:00:03]} 4.
d4 {[%clk 00:15:13]} {[%emt 00:00:05]} d5 {[%clk 00:15:05]} {[%emt 00:00:03]} 5.
c4 {[%clk 00:15:10]} {[%emt 00:00:07]} O-O {[%clk 00:15:05]} {[%emt 00:00:06]}
6. O-O {[%clk 00:15:12]} {[%emt 00:00:03]} Nc6 {[%clk 00:14:58]} {[%emt
00:00:12]} 7. cxd5 {[%clk 00:14:37]} {[%emt 00:00:39]} Nxd5 {[%clk 00:14:55]}
{[%emt 00:00:09]} 8. e4 {[%clk 00:14:37]} {[%emt 00:00:04]} Nb6 {[%clk
00:14:58]} {[%emt 00:00:03]} 9. d5 {[%clk 00:14:40]} {[%emt 00:00:02]} Na5
{[%clk 00:14:52]} {[%emt 00:00:11]} 10. Qe1 {[%clk 00:14:41]} {[%emt 00:00:03]}
Nac4 {[%clk 00:14:48]} {[%emt 00:00:10]} 11. Nc3 {[%clk 00:14:41]} {[%emt
00:00:04]} c6 {[%clk 00:14:36]} {[%emt 00:00:18]} 12. b3 {[%clk 00:11:46]}
{[%emt 00:03:00]} Ne5 {[%clk 00:14:29]} {[%emt 00:00:12]} 13. Nxe5 {[%clk
00:11:21]} {[%emt 00:00:30]} Bxe5 {[%clk 00:14:26]} {[%emt 00:00:08]} 14. Bh6
{[%clk 00:11:10]} {[%emt 00:00:15]} Re8 {[%clk 00:14:08]} {[%emt 00:00:24]} 15.
dxc6 {[%clk 00:07:19]} {[%emt 00:03:56]} bxc6 {[%clk 00:14:00]} {[%emt
00:00:14]} 16. Rd1 {[%clk 00:07:17]} {[%emt 00:00:06]} Qc7 {[%clk 00:13:49]}
{[%emt 00:00:16]} 17. f4 {[%clk 00:07:16]} {[%emt 00:00:05]} Bg7 {[%clk
00:13:38]} {[%emt 00:00:17]} 18. Bxg7 {[%clk 00:07:14]} {[%emt 00:00:07]} Kxg7
{[%clk 00:13:37]} {[%emt 00:00:05]} 19. Qe3 {[%clk 00:06:26]} {[%emt 00:00:53]}
Ba6 {[%clk 00:12:53]} {[%emt 00:00:50]} 20. Rf2 {[%clk 00:06:23]} {[%emt
00:00:08]} Rad8 {[%clk 00:12:27]} {[%emt 00:00:30]} 21. Rfd2 {[%clk 00:06:18]}
{[%emt 00:00:10]} Rxd2 {[%clk 00:12:21]} {[%emt 00:00:11]} 22. Qxd2 {[%clk
00:06:17]} {[%emt 00:00:06]} c5 {[%clk 00:11:33]} {[%emt 00:00:54]} 23. a4
{[%clk 00:06:01]} {[%emt 00:00:21]} e6 {[%clk 00:10:10]} {[%emt 00:01:28]} 24.
e5 {[%clk 00:04:59]} {[%emt 00:01:06]} Re7 {[%clk 00:06:36]} {[%emt 00:03:40]}
25. a5 {[%clk 00:04:33]} {[%emt 00:00:31]} Nc8 {[%clk 00:06:14]} {[%emt
00:00:27]} 26. Ne4 {[%clk 00:04:23]} {[%emt 00:00:15]} Bb7 {[%clk 00:05:46]}
{[%emt 00:00:34]} 27. Nf6 {[%clk 00:04:19]} {[%emt 00:00:07]} Bxg2 {[%clk
00:05:37]} {[%emt 00:00:15]} 28. Kxg2 {[%clk 00:04:03]} {[%emt 00:00:21]} Qc6+
{[%clk 00:04:34]} {[%emt 00:01:09]} 29. Kh3 {[%clk 00:03:22]} {[%emt 00:00:44]}
Rb7 {[%clk 00:03:50]} {[%emt 00:00:50]} 30. a6 {[%clk 00:00:47]} {[%emt
00:02:40]} Qxa6 {[%clk 00:02:38]} {[%emt 00:01:17]} 31. Qd8 {[%clk 00:00:10]}
{[%emt 00:00:42]} Ne7 {[%clk 00:02:08]} {[%emt 00:00:36]} 32. Ne8+ {[%clk
00:00:07]} {[%emt 00:00:07]} Kh6 {[%clk 00:01:50]} {[%emt 00:00:22]} 33. Nf6
{[%clk 00:00:11]} {[%emt 00:00:01]} Kg7 {[%clk 00:01:50]} {[%emt 00:00:06]} 34.
Ne8+ {[%clk 00:00:14]} {[%emt 00:00:02]} Kh6 {[%clk 00:01:50]} {[%emt
00:00:04]} 35. Nd6 {[%clk 00:00:07]} {[%emt 00:00:13]} Nf5 {[%clk 00:01:23]}
{[%emt 00:00:33]} 36. Qg5+ {[%clk 00:00:07]} {[%emt 00:00:05]} Kg7 {[%clk
00:01:23]} {[%emt 00:00:04]} 37. Qf6+ {[%clk 00:00:10]} {[%emt 00:00:02]} Kh6
{[%clk 00:01:05]} {[%emt 00:00:23]} 38. Nxf5+ {[%clk 00:00:08]} {[%emt
00:00:06]} 1-0